Department Family,Entity,Payment Date,Expense Type,Expense Area,Supplier Name,Transactions Number, Amount (�) ,VAT Registration Number
FCO,FCO,23-Mar-11,Uk Duty Travel,DG FINANCE,CONCERTO CONSULTING LTD,1012620,265.82,
FCO,FCO,23-Mar-11,Overseas Duty Travel,DG FINANCE,CONCERTO CONSULTING LTD,1012620,252.6,
FCO,FCO,23-Mar-11,Programme and Project Management Consultancy,DG FINANCE,CONCERTO CONSULTING LTD,1012620,"25,500.00",
FCO,FCO,23-Mar-11,Overseas Duty Travel,DG FINANCE,CONCERTO CONSULTING LTD,1012620,321.11,
FCO,FCO,23-Mar-11,VAT (Input) (Oracle Sub-Ledger Control Account),NON CASH & UNALLOCATED COSTS,CONCERTO CONSULTING LTD,1012620,"5,267.90",
FCO,FCO,23-Mar-11,VAT (Input) (Oracle Sub-Ledger Control Account),NON CASH & UNALLOCATED COSTS,CONCERTO CONSULTING LTD,1012620,0.01,
FCO,FCO,23-Mar-11,Overseas Duty Travel,DG FINANCE,CONCERTO CONSULTING LTD,1012620,-321.11,
FCO,FCO,23-Mar-11,Overseas Duty Travel,DG FINANCE,CONCERTO CONSULTING LTD,1012620,321.11,
FCO,FCO,01-Mar-11,Programme Spend (Oracle Projects Control Account),DG EUROPE AND GLOBALISATION,INTERNATIONAL UNION FOR CONSERVATION OF NATURE,8752,"26,000.00",
FCO,FCO,24-Mar-11,Uk Duty Travel,DG CENTRAL GROUP,NETJETS UK LIMITED,1012831,"113,991.00",
FCO,FCO,03-Mar-11,Programme Spend (Oracle Projects Control Account),DG POLITICAL,INSTITUTE OF MANAGEMENT SCIENCES,17245,"9,461.10",
FCO,FCO,03-Mar-11,Programme Spend (Oracle Projects Control Account),DG POLITICAL,INSTITUTE OF MANAGEMENT SCIENCES,17245,"16,849.66",
FCO,FCO,30-Mar-11,Programme Spend (Oracle Projects Control Account),DG POLITICAL,INSTITUTE OF MANAGEMENT SCIENCES,17482,"26,310.77",
FCO,FCO,11-Mar-11,Assets Under Construction (Oracle PA Control Account),NON CASH & UNALLOCATED COSTS,PEPCO ENERGY SERVICES INC,1003299,"206,658.39",
FCO,FCO,31-Mar-11,Assets Under Construction (Oracle PA Control Account),NON CASH & UNALLOCATED COSTS,PEPCO ENERGY SERVICES INC,1003374,"169,994.49",
FCO,FCO,24-Mar-11,General Information Services,DG CHANGE & DELIVERY,BULLET MARKETING LTD,1012725,"25,000.00",
FCO,FCO,24-Mar-11,VAT (Input) (Oracle Sub-Ledger Control Account),NON CASH & UNALLOCATED COSTS,BULLET MARKETING LTD,1012725,"5,000.00",
FCO,FCO,16-Mar-11,Programme Spend (Oracle Projects Control Account),DG EUROPE AND GLOBALISATION,EUCONNECT LTD,1011924,"40,091.00",
FCO,FCO,27-Mar-11,Programme Spend (Oracle Projects Control Account),DG EUROPE AND GLOBALISATION,XENEL-BALDERRIE,500003677,"77,029.23",
FCO,FCO,23-Mar-11,Nursery Childcare Subsidy,DG CHANGE & DELIVERY,EDENRED,1012629,"29,985.00",
FCO,FCO,23-Mar-11,Nursery Childcare Subsidy,DG CHANGE & DELIVERY,EDENRED,1012629,"1,499.25",
FCO,FCO,23-Mar-11,VAT (Input) (Oracle Sub-Ledger Control Account),NON CASH & UNALLOCATED COSTS,EDENRED,1012629,299.85,
FCO,FCO,16-Mar-11,Programme Spend (Oracle Projects Control Account),DG POLITICAL,JAMES FIREBRACE ASSOCIATES LTD,1011930,"30,000.00",
FCO,FCO,22-Mar-11,Assets Under Construction (Oracle PA Control Account),NON CASH & UNALLOCATED COSTS,OLIN INFRAESTRUCTURA SA DE CV,5005006,"33,997.40",
FCO,FCO,14-Mar-11,Assets Under Construction (Oracle PA Control Account),NON CASH & UNALLOCATED COSTS,MAXXI CONSTRUCAO E GERENCIAMENTO LTDA,1006705,"37,867.74",
FCO,FCO,23-Mar-11,Assets Under Construction (Oracle PA Control Account),NON CASH & UNALLOCATED COSTS,MAXXI CONSTRUCAO E GERENCIAMENTO LTDA,1006788,"28,400.81",
FCO,FCO,10-Mar-11,Programme Spend (Oracle Projects Control Account),DG DEFENCE AND INTELLIGENCE,GOVERNMENT OF THE BRITISH ANTARCTIC TERRITORY,1011374,"100,000.00",
FCO,FCO,14-Mar-11,Assets Under Construction (Oracle PA Control Account),NON CASH & UNALLOCATED COSTS,CONLON FRANZ PHELAN AND VARMA LLP,40000001184,"72,797.41",
FCO,FCO,14-Mar-11,Assets Under Construction (Oracle PA Control Account),NON CASH & UNALLOCATED COSTS,CONLON FRANZ PHELAN AND VARMA LLP,40000001184,"276,879.04",
FCO,FCO,24-Mar-11,Programme Spend (Oracle Projects Control Account),DG EUROPE AND GLOBALISATION,GIZ AFRICAN UNION OFFICE,1012769,"1,000,000.00",
FCO,FCO,23-Mar-11,Programme Spend (Oracle Projects Control Account),DG CHANGE & DELIVERY,TECHNOLOGY STRATEGY BOARD,1012684,"475,000.00",
FCO,FCO,14-Mar-11,Nursery Childcare Subsidy,DG CHANGE & DELIVERY,BRIGHT HORIZONS FAMILY SOLUTION LTD,1011568,"41,246.00",
FCO,FCO,16-Mar-11,Fuel Oil Non-Residential,DG CHANGE & DELIVERY,PACE FUELCARE LIMITED,1011949,"22,820.00",
FCO,FCO,16-Mar-11,Fuel Oil Non-Residential,DG CHANGE & DELIVERY,PACE FUELCARE LIMITED,1011949,"4,564.00",
FCO,FCO,23-Mar-11,Fuel Oil Non-Residential,DG CHANGE & DELIVERY,PACE FUELCARE LIMITED,1012665,"23,010.40",
FCO,FCO,23-Mar-11,Fuel Oil Non-Residential,DG CHANGE & DELIVERY,PACE FUELCARE LIMITED,1012665,"4,602.08",
FCO,FCO,23-Mar-11,Recharge Suspense Account (Oracle PA Control Account),NON CASH & UNALLOCATED COSTS,BRITISH COUNCIL,2054,"40,000.00",
FCO,FCO,04-Mar-11,Customer Refund Account,NON CASH & UNALLOCATED COSTS,BRITISH COUNCIL,1010875,"32,695.00",
FCO,FCO,04-Mar-11,Programme Spend (Oracle Projects Control Account),DG CENTRAL GROUP,BRITISH COUNCIL,1010876,"936,777.38",
FCO,FCO,04-Mar-11,Programme Spend (Oracle Projects Control Account),DG CENTRAL GROUP,BRITISH COUNCIL,1010876,"-936,777.38",
FCO,FCO,04-Mar-11,Programme Spend (Oracle Projects Control Account),DG CENTRAL GROUP,BRITISH COUNCIL,1010876,"867,233.00",
FCO,FCO,04-Mar-11,Programme Spend (Oracle Projects Control Account),DG CENTRAL GROUP,BRITISH COUNCIL,1010876,"36,012.38",
FCO,FCO,04-Mar-11,Programme Spend (Oracle Projects Control Account),DG CENTRAL GROUP,BRITISH COUNCIL,1010876,"33,532.00",
FCO,FCO,14-Mar-11,Programme Spend (Oracle Projects Control Account),DG EUROPE AND GLOBALISATION,BRITISH COUNCIL,1011569,"31,997.00",
FCO,FCO,28-Mar-11,Programme Spend (Oracle Projects Control Account),DG CENTRAL GROUP,BRITISH COUNCIL,1013019,"517,500.00",
FCO,FCO,28-Mar-11,Programme Spend (Oracle Projects Control Account),DG CENTRAL GROUP,BRITISH COUNCIL,1013019,"90,562.50",
FCO,FCO,08-Mar-11,Fco Healthcare Scheme,DG CHANGE & DELIVERY,HEALIX INTERNATIONAL LTD,1011116,"113,147.52",
FCO,FCO,08-Mar-11,Fco Healthcare Scheme,DG CHANGE & DELIVERY,HEALIX INTERNATIONAL LTD,1011116,"22,629.50",
FCO,FCO,08-Mar-11,Fco Healthcare Scheme,DG CHANGE & DELIVERY,HEALIX INTERNATIONAL LTD,1011116,"-113,147.52",
FCO,FCO,08-Mar-11,Fco Healthcare Scheme,DG CHANGE & DELIVERY,HEALIX INTERNATIONAL LTD,1011116,"113,130.70",
FCO,FCO,08-Mar-11,Fco Healthcare Scheme,DG CHANGE & DELIVERY,HEALIX INTERNATIONAL LTD,1011116,16.82,
FCO,FCO,08-Mar-11,Fco Healthcare Scheme,DG CHANGE & DELIVERY,HEALIX INTERNATIONAL LTD,1011116,-3.36,
FCO,FCO,08-Mar-11,Fco Healthcare Scheme,DG CHANGE & DELIVERY,HEALIX INTERNATIONAL LTD,1011116,3.36,
FCO,FCO,09-Mar-11,Aslc Contribution,NON CASH & UNALLOCATED COSTS,CABINET OFFICE,3000859,"3,349,798.13",
FCO,FCO,09-Mar-11,Added Years and Wwpsc,NON CASH & UNALLOCATED COSTS,CABINET OFFICE,3000859,"395,284.79",
FCO,FCO,09-Mar-11,Added Years and Wwpsc,NON CASH & UNALLOCATED COSTS,CABINET OFFICE,3000859,"61,556.31",
FCO,FCO,30-Mar-11,Aslc Contribution,NON CASH & UNALLOCATED COSTS,CABINET OFFICE,3000927,"3,350,504.76",
FCO,FCO,30-Mar-11,Added Years and Wwpsc,NON CASH & UNALLOCATED COSTS,CABINET OFFICE,3000927,"394,355.47",
FCO,FCO,30-Mar-11,Added Years and Wwpsc,NON CASH & UNALLOCATED COSTS,CABINET OFFICE,3000927,"61,571.49",
FCO,FCO,23-Mar-11,Recruitment - Fast Stream,DG CHANGE & DELIVERY,CABINET OFFICE,4000002,"95,000.00",
FCO,FCO,23-Mar-11,Recruitment - Fast Stream,DG CHANGE & DELIVERY,CABINET OFFICE,4000002,"19,000.00",
FCO,FCO,14-Mar-11,Programme Spend (Oracle Projects Control Account),DG POLITICAL,SAVE THE CHILDREN FUND,1011616,"67,436.00",
FCO,FCO,29-Mar-11,Programme Spend (Oracle Projects Control Account),DG POLITICAL,SAVE THE CHILDREN FUND,1013460,"29,264.00",
FCO,FCO,28-Mar-11,FTN Unitary Payment,DG CENTRAL GROUP,CABLE AND WIRELESS WORLDWIDE,1013026,"125,160.00",
FCO,FCO,28-Mar-11,FTN Unitary Payment,DG CENTRAL GROUP,CABLE AND WIRELESS WORLDWIDE,1013026,"25,032.00",
FCO,FCO,30-Mar-11,IT/IS Consultancy,DG CENTRAL GROUP,CABLE AND WIRELESS WORLDWIDE,1013537,"84,700.00",
FCO,FCO,30-Mar-11,IT/IS Consultancy,DG CENTRAL GROUP,CABLE AND WIRELESS WORLDWIDE,1013537,"16,940.00",
FCO,FCO,01-Mar-11,Assets Under Construction (Oracle PA Control Account),NON CASH & UNALLOCATED COSTS,CAPGEMINI  UK PLC,1010486,"39,220.01",
FCO,FCO,01-Mar-11,VAT (Input) (Oracle Sub-Ledger Control Account),NON CASH & UNALLOCATED COSTS,CAPGEMINI  UK PLC,1010486,"7,844.00",
FCO,FCO,03-Mar-11,IT/IS Consultancy,DG CENTRAL GROUP,CAPGEMINI  UK PLC,1010720,"66,440.59",
FCO,FCO,03-Mar-11,VAT (Input) (Oracle Sub-Ledger Control Account),NON CASH & UNALLOCATED COSTS,CAPGEMINI  UK PLC,1010720,"13,288.12",
FCO,FCO,29-Mar-11,Assets Under Construction (Oracle PA Control Account),NON CASH & UNALLOCATED COSTS,CAPGEMINI  UK PLC,1013204,"60,145.00",
FCO,FCO,29-Mar-11,VAT (Input) (Oracle Sub-Ledger Control Account),NON CASH & UNALLOCATED COSTS,CAPGEMINI  UK PLC,1013204,"12,029.00",
FCO,FCO,24-Mar-11,General Information Services,DG CHANGE & DELIVERY,COI - CENTRAL OFFICE OF INFORMATION AND COMMUNICATIONS LTD,4000036,"12,000.00",
FCO,FCO,24-Mar-11,General Information Services,DG CHANGE & DELIVERY,COI - CENTRAL OFFICE OF INFORMATION AND COMMUNICATIONS LTD,4000036,"88,083.07",
FCO,FCO,24-Mar-11,VAT (Input) (Oracle Sub-Ledger Control Account),NON CASH & UNALLOCATED COSTS,COI - CENTRAL OFFICE OF INFORMATION AND COMMUNICATIONS LTD,4000036,"20,016.61",
FCO,FCO,14-Mar-11,Inward Visits/Uk Conferences,DG CHANGE & DELIVERY,DEFRA - DEPT FOR ENVIRNMENT FOOD & RURAL AFFAIRS,1011582,"603,734.00",
FCO,FCO,23-Mar-11,Customer Refund Account,NON CASH & UNALLOCATED COSTS,DFID DEPARTMENT FOR INTERNATIONAL DEVELOPMENT,4000007,"25,155.44",
FCO,FCO,31-Mar-11,Programme Spend (Oracle Projects Control Account),DG EUROPE AND GLOBALISATION,UNDP CONTRIBUTIONS,2000312,"40,000.00",
FCO,FCO,04-Mar-11,FTN Unitary Payment,DG CENTRAL GROUP,GLOBAL CROSSING,1010890,"51,203.85",
FCO,FCO,04-Mar-11,FTN Unitary Payment,DG CENTRAL GROUP,GLOBAL CROSSING,1010890,"10,240.77",
FCO,FCO,17-Mar-11,FTN Unitary Payment,DG CENTRAL GROUP,GLOBAL CROSSING,1012035,"50,039.02",
FCO,FCO,17-Mar-11,FTN Unitary Payment,DG CENTRAL GROUP,GLOBAL CROSSING,1012035,"10,007.80",
FCO,FCO,31-Mar-11,FTN Unitary Payment,DG CENTRAL GROUP,GLOBAL CROSSING,2000310,"53,580.18",
FCO,FCO,02-Mar-11,CFER Payments to The Exchequer,NON CASH & UNALLOCATED COSTS,H M EXCHEQUER,3000854,"397,903.00",
FCO,FCO,30-Mar-11,CFER Payments to The Exchequer,NON CASH & UNALLOCATED COSTS,H M EXCHEQUER,3000930,"433,760.06",
FCO,FCO,29-Mar-11,IT/IS Consultancy,DG CENTRAL GROUP,HEWLETT-PACKARD LTD,1013312,"94,423.00",
FCO,FCO,29-Mar-11,IT/IS Consultancy,DG CENTRAL GROUP,HEWLETT-PACKARD LTD,1013312,"18,884.60",
FCO,FCO,30-Mar-11,IT/IS Consultancy,DG CENTRAL GROUP,HEWLETT-PACKARD LTD,1013571,"49,748.79",
FCO,FCO,30-Mar-11,IT/IS Consultancy,DG CENTRAL GROUP,HEWLETT-PACKARD LTD,1013571,"59,936.19",
FCO,FCO,30-Mar-11,IT/IS Consultancy,DG CENTRAL GROUP,HEWLETT-PACKARD LTD,1013571,"6,315.66",
FCO,FCO,30-Mar-11,IT/IS Consultancy,DG CENTRAL GROUP,HEWLETT-PACKARD LTD,1013571,"9,949.76",
FCO,FCO,30-Mar-11,IT/IS Consultancy,DG CENTRAL GROUP,HEWLETT-PACKARD LTD,1013571,"11,987.24",
FCO,FCO,30-Mar-11,IT/IS Consultancy,DG CENTRAL GROUP,HEWLETT-PACKARD LTD,1013571,"1,263.13",
FCO,FCO,30-Mar-11,IT/IS Consultancy,DG CENTRAL GROUP,HEWLETT-PACKARD LTD,1013571,"-59,936.19",
FCO,FCO,30-Mar-11,IT/IS Consultancy,DG CENTRAL GROUP,HEWLETT-PACKARD LTD,1013571,"-11,987.24",
FCO,FCO,30-Mar-11,IT/IS Consultancy,DG CENTRAL GROUP,HEWLETT-PACKARD LTD,1013571,"59,935.99",
FCO,FCO,30-Mar-11,IT/IS Consultancy,DG CENTRAL GROUP,HEWLETT-PACKARD LTD,1013571,"10,488.80",
FCO,FCO,30-Mar-11,IT/IS Consultancy,DG CENTRAL GROUP,HEWLETT-PACKARD LTD,1013571,"-59,935.99",
FCO,FCO,30-Mar-11,IT/IS Consultancy,DG CENTRAL GROUP,HEWLETT-PACKARD LTD,1013571,"-10,488.80",
FCO,FCO,30-Mar-11,IT/IS Consultancy,DG CENTRAL GROUP,HEWLETT-PACKARD LTD,1013571,"-49,748.79",
FCO,FCO,30-Mar-11,IT/IS Consultancy,DG CENTRAL GROUP,HEWLETT-PACKARD LTD,1013571,"-6,315.66",
FCO,FCO,30-Mar-11,IT/IS Consultancy,DG CENTRAL GROUP,HEWLETT-PACKARD LTD,1013571,"-9,949.76",
FCO,FCO,30-Mar-11,IT/IS Consultancy,DG CENTRAL GROUP,HEWLETT-PACKARD LTD,1013571,"-1,263.13",
FCO,FCO,30-Mar-11,IT/IS Consultancy,DG CENTRAL GROUP,HEWLETT-PACKARD LTD,1013571,"49,748.79",
FCO,FCO,30-Mar-11,IT/IS Consultancy,DG CENTRAL GROUP,HEWLETT-PACKARD LTD,1013571,"59,936.00",
FCO,FCO,30-Mar-11,IT/IS Consultancy,DG CENTRAL GROUP,HEWLETT-PACKARD LTD,1013571,"6,315.66",
FCO,FCO,30-Mar-11,IT/IS Consultancy,DG CENTRAL GROUP,HEWLETT-PACKARD LTD,1013571,"9,949.76",
FCO,FCO,30-Mar-11,IT/IS Consultancy,DG CENTRAL GROUP,HEWLETT-PACKARD LTD,1013571,"11,987.20",
FCO,FCO,30-Mar-11,IT/IS Consultancy,DG CENTRAL GROUP,HEWLETT-PACKARD LTD,1013571,"1,263.13",
FCO,FCO,09-Mar-11,P.A.Y.E Income Tax (Oracle PAY Control Account),NON CASH & UNALLOCATED COSTS,HM REVENUE & CUSTOMS,3000888,"3,437,396.73",
FCO,FCO,09-Mar-11,National Insurance (NI) (Oracle PAY Control Account),NON CASH & UNALLOCATED COSTS,HM REVENUE & CUSTOMS,3000888,"2,006,857.16",
FCO,FCO,30-Mar-11,P.A.Y.E Income Tax (Oracle PAY Control Account),NON CASH & UNALLOCATED COSTS,HM REVENUE AND CUSTOMS,3000932,"3,566,476.92",
FCO,FCO,30-Mar-11,National Insurance (NI) (Oracle PAY Control Account),NON CASH & UNALLOCATED COSTS,HM REVENUE AND CUSTOMS,3000932,"2,114,420.14",
FCO,FCO,16-Mar-11,Home Office Visa Fees: Post Collection-Payment In UK,DG CHANGE & DELIVERY,HOME OFFICE,3000919,"2,208.00",
FCO,FCO,16-Mar-11,Home Office Visa Fees: Post Collection-Payment In UK,DG CHANGE & DELIVERY,HOME OFFICE,3000919,500.28,
FCO,FCO,16-Mar-11,Home Office Visa Fees: Post Collection-Payment In UK,DG CHANGE & DELIVERY,HOME OFFICE,3000919,"25,184.98",
FCO,FCO,16-Mar-11,Home Office Visa Fees: Post Collection-Payment In UK,DG CHANGE & DELIVERY,HOME OFFICE,3000919,"32,524.51",
FCO,FCO,16-Mar-11,Home Office Visa Fees: Post Collection-Payment In UK,DG CHANGE & DELIVERY,HOME OFFICE,3000919,"3,594.96",
FCO,FCO,16-Mar-11,Home Office Visa Fees: Post Collection-Payment In UK,DG CHANGE & DELIVERY,HOME OFFICE,3000919,678,
FCO,FCO,16-Mar-11,Home Office Visa Fees: Post Collection-Payment In UK,DG CHANGE & DELIVERY,HOME OFFICE,3000919,"3,124.67",
FCO,FCO,16-Mar-11,Home Office Visa Fees: Post Collection-Payment In UK,DG CHANGE & DELIVERY,HOME OFFICE,3000919,470.32,
FCO,FCO,16-Mar-11,Home Office Visa Fees: Post Collection-Payment In UK,DG CHANGE & DELIVERY,HOME OFFICE,3000919,"1,127.06",
FCO,FCO,16-Mar-11,Home Office Visa Fees: Post Collection-Payment In UK,DG CHANGE & DELIVERY,HOME OFFICE,3000919,600,
FCO,FCO,16-Mar-11,Home Office Visa Fees: Post Collection-Payment In UK,DG CHANGE & DELIVERY,HOME OFFICE,3000919,"2,499.99",
FCO,FCO,16-Mar-11,Home Office Visa Fees: Post Collection-Payment In UK,DG CHANGE & DELIVERY,HOME OFFICE,3000919,503.95,
FCO,FCO,16-Mar-11,Home Office Visa Fees: Post Collection-Payment In UK,DG CHANGE & DELIVERY,HOME OFFICE,3000919,"1,029.23",
FCO,FCO,16-Mar-11,Home Office Visa Fees: Post Collection-Payment In UK,DG CHANGE & DELIVERY,HOME OFFICE,3000919,501.34,
FCO,FCO,16-Mar-11,Home Office Visa Fees: Post Collection-Payment In UK,DG CHANGE & DELIVERY,HOME OFFICE,3000919,"2,200.00",
FCO,FCO,16-Mar-11,Home Office Visa Fees: Post Collection-Payment In UK,DG CHANGE & DELIVERY,HOME OFFICE,3000919,"13,597.05",
FCO,FCO,16-Mar-11,Home Office Visa Fees: Post Collection-Payment In UK,DG CHANGE & DELIVERY,HOME OFFICE,3000919,700.05,
FCO,FCO,16-Mar-11,Home Office Visa Fees: Post Collection-Payment In UK,DG CHANGE & DELIVERY,HOME OFFICE,3000919,"34,152.46",
FCO,FCO,16-Mar-11,Home Office Visa Fees: Post Collection-Payment In UK,DG CHANGE & DELIVERY,HOME OFFICE,3000919,225.37,
FCO,FCO,16-Mar-11,Home Office Visa Fees: Post Collection-Payment In UK,DG CHANGE & DELIVERY,HOME OFFICE,3000919,977.11,
FCO,FCO,16-Mar-11,Home Office Visa Fees: Post Collection-Payment In UK,DG CHANGE & DELIVERY,HOME OFFICE,3000919,635.94,
FCO,FCO,16-Mar-11,Home Office Visa Fees: Post Collection-Payment In UK,DG CHANGE & DELIVERY,HOME OFFICE,3000919,"1,499.82",
FCO,FCO,16-Mar-11,Home Office Visa Fees: Post Collection-Payment In UK,DG CHANGE & DELIVERY,HOME OFFICE,3000919,499.99,
FCO,FCO,16-Mar-11,Home Office Visa Fees: Post Collection-Payment In UK,DG CHANGE & DELIVERY,HOME OFFICE,3000919,"1,707.99",
FCO,FCO,16-Mar-11,Home Office Visa Fees: Post Collection-Payment In UK,DG CHANGE & DELIVERY,HOME OFFICE,3000919,722.53,
FCO,FCO,16-Mar-11,Home Office Visa Fees: Post Collection-Payment In UK,DG CHANGE & DELIVERY,HOME OFFICE,3000919,"1,507.34",
FCO,FCO,16-Mar-11,Home Office Visa Fees: Post Collection-Payment In UK,DG CHANGE & DELIVERY,HOME OFFICE,3000919,"12,309.08",
FCO,FCO,16-Mar-11,Home Office Visa Fees: Post Collection-Payment In UK,DG CHANGE & DELIVERY,HOME OFFICE,3000919,"2,064.02",
FCO,FCO,24-Mar-11,UKBA Visa Income Creditor Control,NON CASH & UNALLOCATED COSTS,HOME OFFICE,4000046,"129,932,763.00",
FCO,FCO,24-Mar-11,UKBA Visa Expenditure Debtor Control,NON CASH & UNALLOCATED COSTS,HOME OFFICE,4000046,"-84,451,763.00",
FCO,FCO,31-Mar-11,Maintenance M and E,DG CHANGE & DELIVERY,INTERSERVE FM LTD,10406,"2,390.83",
FCO,FCO,31-Mar-11,Maintenance B and Ce,DG CHANGE & DELIVERY,INTERSERVE FM LTD,10406,265.34,
FCO,FCO,31-Mar-11,Minor New Works <10K,DG CHANGE & DELIVERY,INTERSERVE FM LTD,10406,927.53,
FCO,FCO,31-Mar-11,Grounds Mainteance,DG CHANGE & DELIVERY,INTERSERVE FM LTD,10406,237.62,
FCO,FCO,31-Mar-11,Cleaning,DG CHANGE & DELIVERY,INTERSERVE FM LTD,10406,"10,444.33",
FCO,FCO,31-Mar-11,Cleaning,DG CHANGE & DELIVERY,INTERSERVE FM LTD,10406,340.01,
FCO,FCO,31-Mar-11,Miscellaneous Expenditure,DG CHANGE & DELIVERY,INTERSERVE FM LTD,10406,117.95,
FCO,FCO,31-Mar-11,Waste Disposal,DG CHANGE & DELIVERY,INTERSERVE FM LTD,10406,265.67,
FCO,FCO,31-Mar-11,Reception Services,DG CHANGE & DELIVERY,INTERSERVE FM LTD,10406,"7,095.03",
FCO,FCO,31-Mar-11,Contract Porterage,DG CHANGE & DELIVERY,INTERSERVE FM LTD,10406,"5,559.38",
FCO,FCO,31-Mar-11,Stationery - General,DG CHANGE & DELIVERY,INTERSERVE FM LTD,10406,"1,773.76",
FCO,FCO,31-Mar-11,Corporate Strategy Consultancy,DG CHANGE & DELIVERY,INTERSERVE FM LTD,10406,153.64,
FCO,FCO,31-Mar-11,Property and Construction Consultancy,DG CHANGE & DELIVERY,INTERSERVE FM LTD,10406,"11,970.30",
FCO,FCO,31-Mar-11,Rematching / Reinstatement,DG CHANGE & DELIVERY,INTERSERVE FM LTD,10406,181.41,
FCO,FCO,31-Mar-11,Contract Fees,DG CHANGE & DELIVERY,INTERSERVE FM LTD,10406,"6,261.49",
FCO,FCO,17-Mar-11,Programme Spend (Oracle Projects Control Account),DG EUROPE AND GLOBALISATION,INTERNATIONAL COMMISSION FOR MISSING PERSONS,2005497,"50,750.02",
FCO,FCO,23-Mar-11,Project Works>10K,DG CHANGE & DELIVERY,POWER ELECTRICS (BRISTOL) LTD,1012672,"676,604.00",
FCO,FCO,23-Mar-11,Project Works>10K,DG CHANGE & DELIVERY,POWER ELECTRICS (BRISTOL) LTD,1012672,"135,320.80",
FCO,FCO,28-Mar-11,Specialist Training (Devolved),DG EUROPE AND GLOBALISATION,LSE ENTERPRISE LIMITED,1013084,"28,605.00",
FCO,FCO,28-Mar-11,VAT (Input) (Oracle Sub-Ledger Control Account),NON CASH & UNALLOCATED COSTS,LSE ENTERPRISE LIMITED,1013084,"5,721.00",
FCO,FCO,30-Mar-11,Programme Spend (Oracle Projects Control Account),DG EUROPE AND GLOBALISATION,LORD SLYNN HADLEY EURO LAW FOUNDATION,1013589,"35,777.00",
FCO,FCO,17-Mar-11,Assets Under Construction (Oracle PA Control Account),NON CASH & UNALLOCATED COSTS,HAMILTON HARRISON AND MATHEWS,213059,"864,355.17",
FCO,FCO,08-Mar-11,Programme Spend (Oracle Projects Control Account),DG CENTRAL GROUP,MARSHALL AID COMMERATION COMMISSION,1011146,"270,000.00",
FCO,FCO,03-Mar-11,Information Systems Under 3000,DG CENTRAL GROUP,ORACLE CORPORATION (UK) LTD,1010816,17,
FCO,FCO,03-Mar-11,Information Systems Under 3000,DG CENTRAL GROUP,ORACLE CORPORATION (UK) LTD,1010816,-17,
FCO,FCO,03-Mar-11,Information Systems Under 3000,DG CENTRAL GROUP,ORACLE CORPORATION (UK) LTD,1010816,"22,791.28",
FCO,FCO,03-Mar-11,VAT (Input) (Oracle Sub-Ledger Control Account),NON CASH & UNALLOCATED COSTS,ORACLE CORPORATION (UK) LTD,1010816,"4,558.26",
FCO,FCO,03-Mar-11,VAT (Input) (Oracle Sub-Ledger Control Account),NON CASH & UNALLOCATED COSTS,ORACLE CORPORATION (UK) LTD,1010816,0.04,
FCO,FCO,16-Mar-11,Information Systems Maintenance,DG CENTRAL GROUP,SYMANTEC LIRIC LTD,1011969,"186,555.00",
FCO,FCO,16-Mar-11,VAT (Input) (Oracle Sub-Ledger Control Account),NON CASH & UNALLOCATED COSTS,SYMANTEC LIRIC LTD,1011969,"37,311.00",
FCO,FCO,16-Mar-11,Information Systems Maintenance,DG CENTRAL GROUP,SYMANTEC LIRIC LTD,1011969,"-186,555.00",
FCO,FCO,16-Mar-11,VAT (Input) (Oracle Sub-Ledger Control Account),NON CASH & UNALLOCATED COSTS,SYMANTEC LIRIC LTD,1011969,"-37,311.00",
FCO,FCO,16-Mar-11,Information Systems Maintenance,DG CENTRAL GROUP,SYMANTEC LIRIC LTD,1011969,"186,555.00",
FCO,FCO,16-Mar-11,VAT (Input) (Oracle Sub-Ledger Control Account),NON CASH & UNALLOCATED COSTS,SYMANTEC LIRIC LTD,1011969,"32,647.13",
FCO,FCO,30-Mar-11,Programme Spend (Oracle Projects Control Account),DG DEFENCE AND INTELLIGENCE,SAFERWORLD,1013621,"33,214.00",
FCO,FCO,22-Mar-11,Training Course: Fees,DG CHANGE & DELIVERY,SHL GROUP LTD,1012570,"35,000.00",
FCO,FCO,22-Mar-11,VAT (Input) (Oracle Sub-Ledger Control Account),NON CASH & UNALLOCATED COSTS,SHL GROUP LTD,1012570,"7,000.00",
FCO,FCO,09-Mar-11,Programme Spend (Oracle Projects Control Account),DG POLITICAL,SOLACE ENTERPRISES,1011308,"39,600.00",
FCO,FCO,30-Mar-11,Programme Spend (Oracle Projects Control Account),DG EUROPE AND GLOBALISATION,NATIONAL INSTITUTE OF PUBLIC FINANCE AND POLICY,24772,"33,904.70",
FCO,FCO,09-Mar-11,Training,DG CHANGE & DELIVERY,GROUNDTRUTH CONSULTING LTD,1011262,"43,200.00",
FCO,FCO,09-Mar-11,Training,DG CHANGE & DELIVERY,GROUNDTRUTH CONSULTING LTD,1011262,"4,000.00",
FCO,FCO,09-Mar-11,Training,DG CHANGE & DELIVERY,GROUNDTRUTH CONSULTING LTD,1011262,20,
FCO,FCO,09-Mar-11,Training,DG CHANGE & DELIVERY,GROUNDTRUTH CONSULTING LTD,1011262,"4,500.00",
FCO,FCO,09-Mar-11,Training,DG CHANGE & DELIVERY,GROUNDTRUTH CONSULTING LTD,1011262,510,
FCO,FCO,09-Mar-11,Training,DG CHANGE & DELIVERY,GROUNDTRUTH CONSULTING LTD,1011262,58.5,
FCO,FCO,09-Mar-11,VAT (Input) (Oracle Sub-Ledger Control Account),NON CASH & UNALLOCATED COSTS,GROUNDTRUTH CONSULTING LTD,1011262,"10,457.70",
FCO,FCO,28-Mar-11,Programme Spend (Oracle Projects Control Account),DG EUROPE AND GLOBALISATION,WILTON PARK EXECUTIVE AGENCY,1013159,"40,000.00",
FCO,FCO,30-Mar-11,Programme Spend (Oracle Projects Control Account),DG POLITICAL,THE EURASIA FOUNDATION OF CENTRAL ASIA,500003208,"25,389.81",
FCO,FCO,30-Mar-11,Training,DG CHANGE & DELIVERY,CONFLICT MANAGEMENT PLUS LTD,1013545,"23,782.80",
FCO,FCO,30-Mar-11,Training,DG CHANGE & DELIVERY,CONFLICT MANAGEMENT PLUS LTD,1013545,"-23,782.80",
FCO,FCO,30-Mar-11,Training,DG CHANGE & DELIVERY,CONFLICT MANAGEMENT PLUS LTD,1013545,"21,240.00",
FCO,FCO,30-Mar-11,VAT (Input) (Oracle Sub-Ledger Control Account),NON CASH & UNALLOCATED COSTS,CONFLICT MANAGEMENT PLUS LTD,1013545,"4,248.00",
FCO,FCO,16-Mar-11,Training Course: Fees,DG CHANGE & DELIVERY,OLIVER WYMAN LEADERSHIP DEVELOPMENT LIMITED,1011947,"27,000.00",
FCO,FCO,16-Mar-11,Training Course: Fees,DG CHANGE & DELIVERY,OLIVER WYMAN LEADERSHIP DEVELOPMENT LIMITED,1011947,"-27,000.00",
FCO,FCO,16-Mar-11,Training Course: Fees,DG CHANGE & DELIVERY,OLIVER WYMAN LEADERSHIP DEVELOPMENT LIMITED,1011947,"27,000.00",
FCO,FCO,16-Mar-11,VAT (Input) (Oracle Sub-Ledger Control Account),NON CASH & UNALLOCATED COSTS,OLIVER WYMAN LEADERSHIP DEVELOPMENT LIMITED,1011947,"5,400.00",
FCO,FCO,23-Mar-11,Training Course: Fees,DG CHANGE & DELIVERY,OLIVER WYMAN LEADERSHIP DEVELOPMENT LIMITED,1012663,"27,000.00",
FCO,FCO,23-Mar-11,Training Course: Fees,DG CHANGE & DELIVERY,OLIVER WYMAN LEADERSHIP DEVELOPMENT LIMITED,1012663,"-27,000.00",
FCO,FCO,23-Mar-11,Training Course: Fees,DG CHANGE & DELIVERY,OLIVER WYMAN LEADERSHIP DEVELOPMENT LIMITED,1012663,"27,000.00",
FCO,FCO,23-Mar-11,VAT (Input) (Oracle Sub-Ledger Control Account),NON CASH & UNALLOCATED COSTS,OLIVER WYMAN LEADERSHIP DEVELOPMENT LIMITED,1012663,"5,400.00",
FCO,FCO,08-Mar-11,Corporate Strategy Consultancy,DG FINANCE,DTZ CONSULTING AND RESEARCH,1011093,"21,124.29",
FCO,FCO,08-Mar-11,VAT (Input) (Oracle Sub-Ledger Control Account),NON CASH & UNALLOCATED COSTS,DTZ CONSULTING AND RESEARCH,1011093,"4,224.86",
FCO,FCO,08-Mar-11,Corporate Strategy Consultancy,DG FINANCE,DTZ CONSULTING AND RESEARCH,1011093,"-21,124.29",
FCO,FCO,08-Mar-11,Corporate Strategy Consultancy,DG FINANCE,DTZ CONSULTING AND RESEARCH,1011093,"2,763.27",
FCO,FCO,08-Mar-11,Corporate Strategy Consultancy,DG FINANCE,DTZ CONSULTING AND RESEARCH,1011093,"18,361.02",
FCO,FCO,08-Mar-11,VAT (Input) (Oracle Sub-Ledger Control Account),NON CASH & UNALLOCATED COSTS,DTZ CONSULTING AND RESEARCH,1011093,-0.01,
FCO,FCO,08-Mar-11,VAT (Input) (Oracle Sub-Ledger Control Account),NON CASH & UNALLOCATED COSTS,DTZ CONSULTING AND RESEARCH,1011093,0.01,
FCO,FCO,11-Mar-11,Overseas Duty Travel,DG FINANCE,DTZ CONSULTING AND RESEARCH,1011514,263.04,
FCO,FCO,11-Mar-11,Corporate Strategy Consultancy,DG FINANCE,DTZ CONSULTING AND RESEARCH,1011514,919.98,
FCO,FCO,11-Mar-11,Corporate Strategy Consultancy,DG FINANCE,DTZ CONSULTING AND RESEARCH,1011514,"22,698.57",
FCO,FCO,11-Mar-11,VAT (Input) (Oracle Sub-Ledger Control Account),NON CASH & UNALLOCATED COSTS,DTZ CONSULTING AND RESEARCH,1011514,"4,776.32",
FCO,FCO,11-Mar-11,Corporate Strategy Consultancy,DG FINANCE,DTZ CONSULTING AND RESEARCH,1011514,"-22,698.57",
FCO,FCO,11-Mar-11,VAT (Input) (Oracle Sub-Ledger Control Account),NON CASH & UNALLOCATED COSTS,DTZ CONSULTING AND RESEARCH,1011514,"-4,539.71",
FCO,FCO,11-Mar-11,Overseas Duty Travel,DG FINANCE,DTZ CONSULTING AND RESEARCH,1011514,"1,977.78",
FCO,FCO,11-Mar-11,Corporate Strategy Consultancy,DG FINANCE,DTZ CONSULTING AND RESEARCH,1011514,"21,778.59",
FCO,FCO,11-Mar-11,VAT (Input) (Oracle Sub-Ledger Control Account),NON CASH & UNALLOCATED COSTS,DTZ CONSULTING AND RESEARCH,1011514,346.11,
FCO,FCO,11-Mar-11,VAT (Input) (Oracle Sub-Ledger Control Account),NON CASH & UNALLOCATED COSTS,DTZ CONSULTING AND RESEARCH,1011514,"4,355.72",
FCO,FCO,11-Mar-11,Overseas Duty Travel,DG FINANCE,DTZ CONSULTING AND RESEARCH,1011514,"-1,977.78",
FCO,FCO,11-Mar-11,Corporate Strategy Consultancy,DG FINANCE,DTZ CONSULTING AND RESEARCH,1011514,"-21,778.59",
FCO,FCO,11-Mar-11,VAT (Input) (Oracle Sub-Ledger Control Account),NON CASH & UNALLOCATED COSTS,DTZ CONSULTING AND RESEARCH,1011514,-346.11,
FCO,FCO,11-Mar-11,VAT (Input) (Oracle Sub-Ledger Control Account),NON CASH & UNALLOCATED COSTS,DTZ CONSULTING AND RESEARCH,1011514,"-4,355.72",
FCO,FCO,11-Mar-11,Corporate Strategy Consultancy,DG FINANCE,DTZ CONSULTING AND RESEARCH,1011514,"21,778.59",
FCO,FCO,11-Mar-11,VAT (Input) (Oracle Sub-Ledger Control Account),NON CASH & UNALLOCATED COSTS,DTZ CONSULTING AND RESEARCH,1011514,"4,355.72",
FCO,FCO,11-Mar-11,Overseas Duty Travel,DG FINANCE,DTZ CONSULTING AND RESEARCH,1011514,883.18,
FCO,FCO,11-Mar-11,VAT (Input) (Oracle Sub-Ledger Control Account),NON CASH & UNALLOCATED COSTS,DTZ CONSULTING AND RESEARCH,1011514,154.56,
FCO,FCO,11-Mar-11,Overseas Duty Travel,DG FINANCE,DTZ CONSULTING AND RESEARCH,1011514,-883.18,
FCO,FCO,11-Mar-11,Corporate Strategy Consultancy,DG FINANCE,DTZ CONSULTING AND RESEARCH,1011514,"-21,778.59",
FCO,FCO,11-Mar-11,Overseas Duty Travel,DG FINANCE,DTZ CONSULTING AND RESEARCH,1011514,-263.04,
FCO,FCO,11-Mar-11,Corporate Strategy Consultancy,DG FINANCE,DTZ CONSULTING AND RESEARCH,1011514,-919.98,
FCO,FCO,11-Mar-11,VAT (Input) (Oracle Sub-Ledger Control Account),NON CASH & UNALLOCATED COSTS,DTZ CONSULTING AND RESEARCH,1011514,-154.56,
FCO,FCO,11-Mar-11,VAT (Input) (Oracle Sub-Ledger Control Account),NON CASH & UNALLOCATED COSTS,DTZ CONSULTING AND RESEARCH,1011514,"-4,592.33",
FCO,FCO,11-Mar-11,Overseas Duty Travel,DG FINANCE,DTZ CONSULTING AND RESEARCH,1011514,"1,183.02",
FCO,FCO,11-Mar-11,Corporate Strategy Consultancy,DG FINANCE,DTZ CONSULTING AND RESEARCH,1011514,919.98,
FCO,FCO,11-Mar-11,Corporate Strategy Consultancy,DG FINANCE,DTZ CONSULTING AND RESEARCH,1011514,"21,778.59",
FCO,FCO,11-Mar-11,VAT (Input) (Oracle Sub-Ledger Control Account),NON CASH & UNALLOCATED COSTS,DTZ CONSULTING AND RESEARCH,1011514,207.03,
FCO,FCO,11-Mar-11,VAT (Input) (Oracle Sub-Ledger Control Account),NON CASH & UNALLOCATED COSTS,DTZ CONSULTING AND RESEARCH,1011514,"4,539.72",
FCO,FCO,11-Mar-11,Overseas Duty Travel,DG FINANCE,DTZ CONSULTING AND RESEARCH,1011514,"-1,183.02",
FCO,FCO,11-Mar-11,Overseas Duty Travel,DG FINANCE,DTZ CONSULTING AND RESEARCH,1011514,"1,183.02",
FCO,FCO,11-Mar-11,VAT (Input) (Oracle Sub-Ledger Control Account),NON CASH & UNALLOCATED COSTS,DTZ CONSULTING AND RESEARCH,1011514,-207.03,
FCO,FCO,11-Mar-11,VAT (Input) (Oracle Sub-Ledger Control Account),NON CASH & UNALLOCATED COSTS,DTZ CONSULTING AND RESEARCH,1011514,236.6,
FCO,FCO,08-Mar-11,Training Course: Fees,DG CHANGE & DELIVERY,RADA ENTERPRISES LIMITED,1011176,84,
FCO,FCO,08-Mar-11,Training Course: Fees,DG CHANGE & DELIVERY,RADA ENTERPRISES LIMITED,1011176,276,
FCO,FCO,08-Mar-11,Training Course: Fees,DG CHANGE & DELIVERY,RADA ENTERPRISES LIMITED,1011176,14,
FCO,FCO,08-Mar-11,Training Course: Fees,DG CHANGE & DELIVERY,RADA ENTERPRISES LIMITED,1011176,"23,420.00",
FCO,FCO,08-Mar-11,Training Course: Fees,DG CHANGE & DELIVERY,RADA ENTERPRISES LIMITED,1011176,540,
FCO,FCO,08-Mar-11,Training Course: Fees,DG CHANGE & DELIVERY,RADA ENTERPRISES LIMITED,1011176,"1,080.00",
FCO,FCO,08-Mar-11,VAT (Input) (Oracle Sub-Ledger Control Account),NON CASH & UNALLOCATED COSTS,RADA ENTERPRISES LIMITED,1011176,"5,082.80",
